bitfinex/quotes_ETHUSD_20251120
["timestamp","ask_amount","ask_price","bid_price","bid_amount"]
[1763628521627,14.57245711,3037.1,3036.8,0.001]
[1763628521828,11.10245711,3037.1,3036.8,0.001]
[1763628522771,6.18804333,3036.7,3036.6,1e-08]
[1763628523064,8.72382316,3036.7,3036.6,1e-08]
[1763628523360,7.99556768,3036.7,3036.6,1e-08]
[1763628523729,12.46564402,3036.7,3036.6,1e-08]
[1763628524271,11.28861605,3036.7,3036.6,1e-08]
[1763628525265,14.58166442,3036.7,3035.9,0.001]
[1763628525564,2.9141055,3036.6,3035.9,0.001]
[1763628526168,6.20726232,3036.6,3035.9,0.001]
[1763628528177,6.20646232,3036.6,3035.9,0.001]
[1763628528873,6.33839344,3036.6,3035.9,0.001]
[1763628531267,6.33839344,3036.6,3036.1,0.001]
[1763628533066,5.63343166,3036.6,3036.1,0.001]
[1763628533259,6.34132059,3036.6,3036.1,0.001]
[1763628534077,6.45232059,3036.6,3036.1,0.001]
[1763628534252,6.41531497,3036.6,3036.1,0.001]
[1763628534591,7.63199738,3036.6,3036.5,0.4896]
[1763628534742,5.86181497,3036.6,3036.5,0.4896]
[1763628535152,5.86181497,3036.6,3036.5,0.001]
[1763628535351,10.62706166,3036.6,3036.5,0.001]
[1763628535676,12.39724407,3036.6,3036.5,0.001]
[1763628536038,11.68935514,3036.6,3036.5,0.001]
[1763628536240,12.39766748,3036.6,3036.5,0.001]
[1763628536444,12.39903398,3036.6,3036.5,0.001]
[1763628537050,12.39903398,3036.6,3036.5,0.9583]
[1763628537051,5.86360488,3036.6,3036.5,0.9583]
[1763628537248,7.63378729,3036.6,3036.5,0.9583]
[1763628537462,5.86360488,3036.6,3036.5,0.9583]
[1763628538250,7.63378729,3036.6,3036.5,0.9583]
[1763628538582,7.63378729,3036.6,3036.5,0.4896]
[1763628539376,7.52278729,3036.6,3036.5,0.4896]
[1763628539563,7.63378729,3036.6,3036.5,0.4896]
[1763628540068,7.32627933,3036.6,3036.5,0.9583]
[1763628540774,7.21527933,3036.6,3036.5,0.9583]
[1763628541091,6.73891574,3036.6,3036.5,0.4896]
[1763628541254,5.55609692,3036.6,3036.5,0.4896]
[1763628541447,5.55609692,3036.6,3036.5,0.9583]
[1763628541958,5.55609692,3036.6,3036.5,0.4896]
[1763628542164,10.25094361,3036.6,3036.5,0.001]
[1763628542357,10.80094361,3036.6,3036.5,0.001]
[1763628543153,12.57112602,3036.6,3036.5,0.001]
[1763628543579,10.32214361,3036.6,3036.5,0.001]
[1763628543958,10.25094361,3036.6,3036.5,0.001]
[1763628544483,13.54410043,3036.6,3036.3,0.001]
[1763628544682,1.31249664,3036.4,3036.3,0.4697]
[1763628544850,2.32903442,3036.4,3036.3,0.4697]
[1763628545046,2.79873442,3036.4,3036.3,0.9583]
[1763628545482,6.09210815,3036.4,3036.3,0.9583]
[1763628545687,6.20310815,3036.4,3036.3,0.9583]
[1763628547088,6.20310815,3036.4,3036.3,0.4896]
[1763628547300,7.9785042,3036.4,3036.3,0.4896]
[1763628547595,7.8675042,3036.4,3036.3,0.9583]
[1763628547765,6.09210815,3036.4,3036.3,0.9583]
[1763628547969,7.38804951,3036.4,3036.3,0.9583]
[1763628548987,7.38804951,3036.4,3036.3,0.4896]
[1763628549294,5.73340815,3036.4,3036.3,0.4896]
[1763628549498,5.73340815,3036.4,3036.3,0.9752]
[1763628550062,5.62240815,3036.4,3036.3,0.9752]
[1763628550262,5.73340815,3036.4,3036.3,0.9752]
[1763628550958,6.10590314,3036.4,3036.3,0.9752]
[1763628551158,5.73340815,3036.4,3036.3,0.9752]
[1763628552176,5.62160815,3036.4,3036.3,0.9752]
[1763628552502,5.73260815,3036.4,3036.3,0.9752]
[1763628552797,4.71541551,3036.4,3036.3,0.9752]
[1763628553095,4.11810317,3036.4,3036.3,0.9752]
[1763628553294,4.11851135,3036.4,3036.3,0.9752]
[1763628553696,4.15551697,3036.4,3036.3,0.9752]
[1763628553894,4.86623143,3036.4,3036.3,0.9752]
[1763628554288,5.77322407,3036.4,3036.3,0.9752]
[1763628554599,5.73621845,3036.4,3036.3,0.9752]
[1763628556165,5.62521845,3036.4,3036.3,0.9752]
[1763628556365,4.11851135,3036.4,3036.3,0.9752]
[1763628557999,3.80987773,3036.4,3036.3,0.9752]
[1763628558180,4.11816253,3036.4,3036.3,0.9752]
[1763628558987,3.29330707,3036.5,3036.3,1.46966]
[1763628559198,3.70069652,3036.6,3036.5,0.4863]
[1763628559388,4.11999639,3036.6,3036.5,0.9719]
[1763628561180,4.00899639,3036.6,3036.5,0.9719]
[1763628561607,4.11999639,3036.6,3036.5,0.9719]
[1763628561815,3.29515682,3036.6,3036.5,0.9719]
[1763628561990,4.11983888,3036.6,3036.5,0.9719]
[1763628562504,3.81166082,3036.6,3036.5,0.9719]
[1763628563580,3.70066082,3036.6,3036.5,0.9719]
[1763628563779,3.81166082,3036.6,3036.5,0.9719]
[1763628565391,3.81166082,3036.6,3036.5,0.94113597]
[1763628566525,7.89805151,3036.6,3036.3,0.001]
[1763628566689,5.4068684,3036.5,3036.4,0.001]
[1763628566889,5.4892684,3036.5,3036.4,0.001]
[1763628567120,4.00680314,3036.5,3036.4,0.4873]
[1763628567321,4.11780314,3036.5,3036.4,0.9729]
[1763628568404,3.80976927,3036.5,3036.4,0.9729]
[1763628568718,4.1177979,3036.5,3036.4,0.9729]
[1763628569323,4.11780122,3036.5,3036.4,0.9729]
[1763628569814,4.11780231,3036.5,3036.4,0.9729]
[1763628570016,4.00680231,3036.5,3036.4,0.9729]
[1763628570217,3.71229831,3036.5,3036.4,0.9729]
[1763628570718,0.41903304,3036.5,3036.4,0.9729]
[1763628571121,0.30803304,3036.5,3036.4,0.9729]
[1763628571289,0.30803304,3036.5,3036.4,6.23305358]
[1763628571636,0.111,3036.5,3036.4,9.52642731]
[1763628571833,0.111,3036.5,3036.4,6.23305358]
[1763628572005,0.111,3036.5,3036.4,1.53972305]
[1763628576235,0.1102,3036.5,3036.4,1.53972305]
[1763628576737,0.111,3036.5,3036.4,1.53972305]
[1763628576906,0.002,3036.6,3036.4,1.53972305]
[1763628577110,0.002,3036.6,3036.5,5.22682009]
[1763628577528,0.113,3036.6,3036.5,5.22682009]
[1763628577922,0.113,3036.6,3036.5,8.52008536]
[1763628578123,0.09398691,3037.1,3036.6,4.69333053]
[1763628578303,0.09398691,3037.1,3037.0,0.4916]
[1763628578508,0.111,3037.1,3037.0,4.276]
[1763628578728,0.111,3037.1,3037.0,4.7443]
[1763628580211,0.111,3037.1,3037.0,5.21873]
[1763628581013,3.40361466,3037.1,3037.0,4.75043]
[1763628581214,3.80911866,3037.1,3037.0,3.7844]
[1763628581417,3.93141866,3037.1,3037.0,3.7844]
[1763628581638,3.80911866,3037.1,3037.0,3.7844]
[1763628583143,3.80911866,3037.1,3037.0,0.4916]
[1763628584345,3.81111866,3037.1,3037.0,0.4916]
[1763628588748,0.405504,3037.0,3036.7,0.4683]
[1763628588955,0.405504,3037.0,3036.7,4.2527]
[1763628589144,0.405504,3037.0,3036.9,0.4916]
[1763628590118,0.71383158,3037.0,3036.9,0.4916]
[1763628591160,7.87547774,3037.0,3036.7,3.7844]
[1763628591371,0.0045,3036.8,3036.5,0.001]
[1763628591572,0.523304,3036.6,3036.5,0.001]
[1763628591726,0.71383158,3036.6,3036.5,0.001]
[1763628591928,0.71383158,3036.6,3036.5,0.9609]
[1763628592498,0.71383158,3036.6,3036.5,0.4926]
[1763628593273,4.0069884,3036.6,3036.5,0.4926]
[1763628593837,4.0069884,3036.6,3036.5,0.9609]
[1763628594043,4.1179884,3036.6,3036.5,0.9609]
[1763628595383,0.30832758,3036.6,3036.5,0.4926]
[1763628595577,0.111,3036.6,3036.5,0.9609]
[1763628595785,0.41932758,3036.6,3036.5,0.9609]
[1763628595943,0.111,3036.6,3036.5,0.9609]
[1763628597403,0.41931304,3036.6,3036.5,0.9609]
[1763628597756,0.111,3036.6,3036.5,0.9609]
[1763628598380,0.41929433,3036.6,3036.5,0.9609]
[1763628599565,0.30829433,3036.7,3036.5,1.3865369]
[1763628599759,0.41929433,3036.6,3036.5,0.001]
[1763628600181,0.41849433,3036.6,3036.5,0.4926]
[1763628600502,3.71165115,3036.6,3036.5,0.001]
[1763628600659,3.74865677,3036.6,3036.5,0.001]
[1763628600855,3.74865677,3036.6,3036.5,0.4926]
[1763628601051,4.27976077,3036.6,3036.5,0.001]
[1763628601410,9.4236913,3036.6,3036.5,0.001]
[1763628601560,10.09731521,3036.6,3036.5,0.001]
[1763628601762,5.40398468,3036.6,3036.5,0.001]
[1763628603901,4.84318468,3036.6,3036.5,0.001]
[1763628604108,4.82858468,3036.6,3036.5,0.4926]
[1763628604416,4.82858468,3036.6,3036.5,0.001]
[1763628604580,4.95748468,3036.6,3036.5,0.001]
[1763628604777,4.24685515,3036.6,3036.5,0.001]
[1763628604983,4.00695515,3036.6,3036.5,0.9609]
[1763628605198,4.11795515,3036.6,3036.5,0.9609]
[1763628605908,4.00695515,3036.6,3036.5,0.9609]
[1763628606113,4.11795515,3036.6,3036.5,0.9609]
[1763628606311,4.11795515,3036.6,3036.5,0.4926]
[1763628606498,4.24025515,3036.6,3036.5,0.001]
[1763628606676,4.15496077,3036.6,3036.5,0.001]
[1763628606884,4.11795515,3036.6,3036.5,0.4926]
[1763628607384,4.11790204,3036.6,3036.5,0.4926]
[1763628608217,0.41924122,3036.6,3036.5,0.9609]
[1763628608414,3.7124149,3036.6,3036.5,0.9609]
[1763628609921,3.7124149,3036.6,3036.5,0.9604]
[1763628610122,3.7124149,3036.6,3036.5,0.001]
[1763628610998,4.1179189,3036.6,3036.5,0.001]
[1763628611894,4.1179189,3036.6,3036.5,0.4683]
[1763628612130,4.2371189,3036.6,3036.5,0.001]
[1763628613127,4.1179189,3036.6,3036.5,0.001]
[1763628613326,4.27752452,3036.6,3036.5,0.001]
[1763628613498,4.73112452,3036.6,3036.5,0.001]
[1763628613832,4.27752452,3036.6,3036.5,0.001]
[1763628614422,4.2405189,3036.6,3036.5,0.001]
[1763628614612,4.1179189,3036.6,3036.5,0.001]
[1763628615713,4.1179189,3036.6,3036.5,0.9361]
[1763628616415,4.1179189,3036.6,3036.5,0.4683]
[1763628619233,3.80966082,3036.6,3036.5,0.4683]
[1763628619398,4.11996718,3036.6,3036.5,0.9361]
[1763628620439,4.11996718,3036.6,3036.5,0.4683]
[1763628620843,4.2761728,3036.6,3036.5,0.001]
[1763628621340,4.7330728,3036.6,3036.5,0.001]
[1763628621539,5.44355012,3036.6,3036.5,0.001]
[1763628624134,5.44275012,3036.6,3036.5,0.001]
[1763628625739,7.2007995,3036.6,3036.5,0.001]
[1763628629819,7.33270539,3036.6,3036.5,0.001]
[1763628630621,6.44464303,3036.6,3036.5,0.001]
[1763628631614,6.4439035,3036.6,3036.5,0.001]
[1763628632019,5.33039361,3036.6,3036.5,0.4752]
[1763628632234,5.33039361,3036.6,3036.5,0.9614]
[1763628632235,5.21939361,3036.6,3036.5,0.9614]
[1763628632437,3.71292365,3036.6,3036.5,0.9614]
[1763628633136,4.11842765,3036.6,3036.5,0.9614]
[1763628634367,4.00742765,3036.6,3036.5,0.9614]
[1763628634536,4.11842765,3036.6,3036.5,0.9614]
[1763628636071,4.11842765,3036.6,3036.5,0.4752]
[1763628637074,4.11842765,3036.6,3036.5,0.9614]
[1763628641371,4.00742765,3036.6,3036.5,0.9614]
[1763628641575,4.11842765,3036.6,3036.5,0.9614]
[1763628641789,4.11842765,3036.6,3036.5,0.4752]
[1763628642677,4.00742765,3036.6,3036.5,0.4752]
[1763628642875,4.11842765,3036.6,3036.5,0.4752]
[1763628643083,4.11842765,3036.6,3036.5,0.001]
[1763628643084,4.58402765,3036.6,3036.5,0.001]
[1763628643292,4.73503327,3036.6,3036.5,0.001]
[1763628643491,5.40677953,3036.6,3036.5,0.001]
[1763628645780,5.0992127,3036.6,3036.5,0.001]
[1763628645996,5.40676168,3036.6,3036.5,0.001]
[1763628647763,5.3327673,3036.6,3036.5,0.001]
[1763628647987,5.4437673,3036.6,3036.5,0.001]
[1763628648182,5.4429673,3036.6,3036.5,0.001]
[1763628650785,5.40596168,3036.6,3036.5,0.001]
[1763628650987,5.40574144,3036.6,3036.5,0.001]
[1763628651381,5.44274706,3036.6,3036.5,0.001]
[1763628651879,5.40574144,3036.6,3036.5,0.001]
[1763628652086,5.44274706,3036.6,3036.5,0.001]
[1763628654691,6.3497397,3036.6,3036.5,0.001]
[1763628654889,7.23780206,3036.6,3036.5,0.001]
[1763628655183,7.33270189,3036.6,3036.5,0.001]
[1763628656160,6.44463953,3036.6,3036.5,0.001]
[1763628656358,6.48164515,3036.6,3036.5,0.001]
[1763628656758,7.66697252,3036.6,3036.5,0.001]
[1763628656999,7.6299669,3036.6,3036.5,0.001]
[1763628657866,8.22003558,3036.6,3036.5,0.001]
[1763628658065,1.31249664,3036.5,3036.4,0.001]
[1763628658261,9.28672811,3036.5,3036.4,0.001]
[1763628658488,9.24972249,3036.5,3036.4,0.001]
[1763628658690,9.38165405,3036.5,3036.4,0.001]
[1763628659384,12.67491932,3036.5,3036.4,0.001]
[1763628660680,12.67441018,3036.5,3036.4,0.001]
[1763628661395,10.90638661,3036.5,3036.4,0.001]
[1763628662595,12.19441416,3036.5,3036.4,0.001]
[1763628663288,12.08341416,3036.5,3036.4,0.001]
[1763628663469,11.01738661,3036.5,3036.4,0.001]
[1763628664103,5.34776095,3036.5,3036.4,0.4705]
[1763628664302,4.55176831,3036.5,3036.4,0.9402]
[1763628664603,4.55176831,3036.5,3036.4,0.4705]
[1763628664775,5.61636657,3036.5,3036.4,0.001]
[1763628665303,5.45876095,3036.5,3036.4,0.001]
[1763628665507,5.86426495,3036.5,3036.4,0.001]
[1763628665801,5.45876095,3036.5,3036.4,0.4705]
[1763628666200,5.86426495,3036.5,3036.4,0.4705]
[1763628668017,6.02527057,3036.5,3036.4,0.001]
[1763628669905,5.90127057,3036.5,3036.4,0.001]
[1763628670109,6.02727057,3036.5,3036.4,0.001]
[1763628670908,11.17259223,3036.5,3036.4,0.001]
[1763628671110,11.13558661,3036.5,3036.4,0.001]
[1763628672228,11.13478661,3036.5,3036.4,0.001]
[1763628673240,12.01740699,3036.5,3036.4,0.001]
[1763628673390,12.31181416,3036.5,3036.4,0.001]
[1763628673594,12.90281018,3036.5,3036.4,0.001]
[1763628674135,12.90281018,3036.5,3033.8,4.69312166]
[1763628674136,0.0045,3036.1,3033.8,4.69312166]
[1763628674321,7.43016933,3036.0,3035.0,0.6583]
[1763628674517,6.5101379,3036.0,3035.0,0.6583]
[1763628674720,0.405504,3035.6,3034.6,0.4592]
[1763628674920,0.0048,3035.1,3034.6,0.4592]
[1763628675145,0.405504,3034.9,3034.6,0.4592]
[1763628675422,0.467004,3034.7,3033.3,3.2967358]
[1763628675622,0.405504,3034.5,3034.1,0.4592]
[1763628675820,0.7123236,3034.5,3034.1,0.4592]
[1763628676134,4.00777786,3034.5,3034.4,0.4936]
[1763628676718,4.00777786,3034.5,3034.4,0.9528]
[1763628677617,4.9147705,3034.5,3034.4,0.4936]
[1763628677927,8.67300632,3034.5,3033.8,0.4592]
[1763628678128,0.405504,3034.3,3034.0,0.6583]
[1763628678297,0.405504,3034.1,3034.0,0.6583]
[1763628678723,0.405504,3034.1,3034.0,1.1519]
[1763628679300,0.516504,3034.1,3034.0,1.1519]
[1763628679903,4.71936691,3034.1,3034.0,1.1519]
[1763628681207,3.70137427,3034.1,3034.0,1.1519]
[1763628681406,3.81237427,3034.1,3034.0,1.1519]
[1763628685935,3.81237427,3034.1,3034.0,0.6927]
[1763628686141,10.40411481,3034.1,3033.1,3.7844]
[1763628686336,10.40411481,3034.1,3033.6,0.4592]
[1763628686337,0.90699264,3034.0,3033.6,0.4592]
[1763628687528,1.31249664,3034.0,3033.9,0.4936]
[1763628687911,1.31249664,3034.0,3033.9,0.9782]
[1763628688106,4.60847554,3034.0,3033.9,0.9782]
[1763628688712,4.71947554,3034.0,3033.9,0.9782]
[1763628690192,4.60847554,3034.0,3033.9,0.9782]
[1763628690312,4.70113043,3034.9,3033.9,0.9782]
[1763628690516,4.2851768,3034.7,3034.0,0.937]
[1763628690841,0.405504,3034.6,3034.0,0.937]
[1763628691013,0.405504,3034.6,3034.1,0.6806]
[1763628691209,0.405504,3034.6,3034.5,0.4524]
[1763628691616,0.405504,3034.6,3034.5,0.937]
[1763628692338,3.70083122,3034.6,3034.5,0.937]
[1763628692844,0.405504,3034.6,3034.5,0.937]
[1763628693029,3.29435018,3035.5,3034.5,4.23239076]
[1763628693229,3.29435018,3035.5,3035.4,0.4524]
[1763628693610,3.29435018,3035.5,3035.4,0.937]
[1763628693808,3.29628455,3035.6,3035.4,0.937]
[1763628694035,3.70178855,3035.6,3035.5,0.937]
[1763628694257,0.002,3035.6,3035.5,0.937]
[1763628694774,0.407504,3035.6,3035.5,0.937]
[1763628695376,0.407504,3035.6,3035.5,0.4524]
[1763628696066,0.407504,3035.6,3035.5,0.937]
[1763628696241,0.406704,3035.6,3035.5,0.937]
[1763628696848,3.70094566,3035.6,3035.5,0.937]
[1763628697278,3.70094566,3035.6,3035.5,0.4524]
[1763628697455,15.11726503,3035.6,3034.7,0.4846]
[1763628697683,14.99055941,3035.6,3034.7,0.4846]
[1763628698576,3.29544166,3035.6,3035.5,0.6586]
[1763628698866,3.81194566,3035.6,3035.5,0.6586]
[1763628699069,3.81194566,3035.6,3035.5,0.4694]
[1763628701855,0.405504,3035.5,3034.8,0.4518]
[1763628702051,15.0674527,3035.6,3034.4,0.4518]
[1763628702052,0.405504,3035.1,3034.4,0.4518]
[1763628702264,0.405504,3034.9,3034.4,0.4518]
[1763628702770,0.405504,3034.9,3034.8,0.4694]
[1763628703273,3.70050548,3034.9,3034.8,0.9212]
[1763628705459,3.70050548,3034.9,3034.8,0.4694]
[1763628705660,3.70050548,3034.9,3034.8,0.9212]
[1763628708053,3.70050548,3034.9,3034.8,0.4694]
[1763628708490,7.55050696,3034.9,3034.6,0.001]
[1763628708651,0.0049,3034.7,3034.6,0.001]
[1763628709082,3.70562263,3034.7,3034.6,0.001]
[1763628709678,4.61261527,3034.7,3034.6,0.001]
[1763628710129,4.60771527,3034.7,3034.6,0.4704]
[1763628711023,4.60771527,3034.7,3034.6,0.9222]
[1763628711024,3.70072263,3034.7,3034.6,0.9222]
[1763628712879,3.70072263,3034.7,3034.6,0.4704]
[1763628713220,3.70072263,3034.7,3034.6,0.9222]
[1763628717828,3.70072263,3034.7,3034.6,0.4704]
[1763628718002,3.70072263,3034.7,3034.6,0.9222]
[1763628718203,3.70072263,3034.7,3034.6,0.4704]
[1763628718408,3.70072263,3034.7,3034.6,0.001]
[1763628718409,4.48729114,3034.7,3034.6,0.001]
[1763628718924,4.52429676,3034.7,3034.6,0.001]
[1763628719310,4.52429676,3034.7,3034.6,0.4704]
[1763628719311,0.71187251,3034.7,3034.6,0.4704]
[1763628719491,4.00709114,3034.7,3034.6,0.9222]
[1763628720131,4.00629114,3034.7,3034.6,0.9222]
[1763628720428,4.00629114,3034.7,3034.6,0.4704]
[1763628720622,4.07219114,3034.7,3034.6,0.001]
[1763628721132,5.5052894,3034.7,3034.6,0.001]
[1763628721309,6.17414869,3034.7,3034.6,0.001]
[1763628721508,7.16410884,3034.7,3034.6,0.001]
[1763628724506,5.21444469,3034.7,3034.6,0.001]
[1763628724706,5.32544469,3034.7,3034.6,0.9222]
[1763628725221,5.73094869,3034.7,3034.6,0.4704]
[1763628725421,5.80104869,3034.7,3034.6,0.001]
[1763628726707,5.73094869,3034.7,3034.6,0.4704]
[1763628727807,5.73094869,3034.7,3034.6,0.9222]
[1763628728632,5.73094869,3034.7,3034.6,0.4704]
[1763628728830,5.02508378,3034.7,3034.6,0.4704]
[1763628729435,5.02508378,3034.7,3034.6,0.001]
[1763628729631,5.02508378,3034.7,3034.6,0.4781]
[1763628729847,4.11809114,3034.7,3034.6,0.9426]
[1763628730413,4.11809114,3034.7,3034.6,0.4781]
[1763628730742,4.18179114,3034.7,3034.6,0.001]
[1763628731444,4.11809114,3034.7,3034.6,0.4781]
[1763628731643,4.11809114,3034.7,3034.6,0.9426]
[1763628731847,4.11809114,3034.7,3034.6,0.4781]
[1763628732015,4.57019114,3034.7,3034.6,0.001]
[1763628732416,4.11809114,3034.7,3034.6,0.4781]
[1763628734017,4.00709114,3034.7,3034.6,0.9426]
[1763628734212,4.11809114,3034.7,3034.6,0.9426]
[1763628736222,4.11809114,3034.7,3034.6,0.001]
[1763628736422,4.21879676,3034.7,3034.6,0.001]
[1763628736846,4.18179114,3034.7,3034.6,0.001]
[1763628737843,4.21879676,3034.7,3034.6,0.001]
[1763628738671,4.18179114,3034.7,3034.6,0.001]
[1763628740360,6.2881019,3034.7,3034.6,0.001]
[1763628740932,6.2901019,3034.7,3034.6,0.001]
[1763628742662,5.7351019,3034.7,3034.6,0.4781]
[1763628743564,3.60358714,3034.7,3034.6,0.9426]
[1763628743735,4.12009114,3034.7,3034.6,0.9426]
[1763628744281,0.41856851,3034.7,3034.6,0.9426]
[1763628744492,0.113,3034.7,3034.6,0.4781]
[1763628744637,3.81372263,3034.7,3034.6,0.9426]
[1763628745277,0.518504,3034.7,3034.6,0.9426]
[1763628745630,3.81372263,3034.7,3034.6,0.9426]
[1763628747304,0.002,3034.7,3034.6,0.9426]
[1763628748168,0.002,3034.7,3034.6,1.36651291]
[1763628748863,0.002,3034.7,3034.6,0.9426]
[1763628750207,0.002,3034.7,3034.6,4.23792722]
[1763628750676,0.002,3035.1,3034.6,8.44024708]
[1763628750901,0.002,3035.1,3035.0,0.4692]
[1763628751371,0.002,3035.1,3035.0,0.9635]
[1763628751571,0.002,3035.1,3035.0,4.25839291]
[1763628751802,0.002,3035.1,3035.0,1.71883985]
[1763628752206,0.002,3035.1,3035.0,0.9635]
[1763628752875,0.002,3035.1,3035.0,0.4692]
[1763628753074,0.113,3035.1,3035.0,0.4692]
[1763628753486,0.113,3035.1,3035.0,0.9635]
[1763628754223,3.40778435,3035.1,3035.0,0.9635]
[1763628754731,0.113,3035.1,3035.0,0.9635]
[1763628755515,0.113,3035.1,3034.6,0.001]
[1763628755716,3.40778435,3035.1,3035.0,0.4692]
[1763628757424,3.49728435,3035.1,3034.7,0.4943]
[1763628757613,6.7920687,3035.1,3034.7,0.4943]
[1763628757991,6.7920687,3035.1,3034.6,0.001]
[1763628758191,6.7920687,3035.1,3034.6,0.477]
[1763628758736,6.7025687,3035.1,3034.6,0.001]
[1763628758915,6.7025687,3035.1,3034.7,0.476]
[1763628761228,6.7025687,3035.1,3034.7,4.2604]
[1763628761711,6.7025687,3035.1,3034.8,0.476]
[1763628763734,0.002,3035.1,3035.0,0.4559]
[1763628763905,0.113,3035.1,3035.0,0.4559]
[1763628764103,0.113,3035.1,3035.0,0.9319]
[1763628766933,3.40778435,3035.1,3034.7,3.7844]
[1763628767111,3.40778435,3035.1,3034.8,3.7844]
[1763628767432,3.40778435,3035.1,3035.0,0.4559]
[1763628767934,3.40778435,3035.1,3035.0,0.9319]
[1763628768135,0.1122,3035.1,3035.0,0.9319]
[1763628768503,3.40698435,3035.1,3035.0,0.9319]
[1763628769007,0.1122,3035.1,3035.0,0.9319]
[1763628769208,3.40698435,3035.1,3035.0,0.9319]
[1763628770037,3.89568435,3035.1,3034.8,3.7844]
[1763628770247,0.4887,3034.9,3034.8,3.7844]
[1763628771928,3.78370148,3034.9,3034.8,3.7844]
[1763628772246,0.405504,3034.8,3034.6,0.001]
[1763628772449,1.001104,3034.7,3034.6,0.001]
[1763628772750,0.516504,3034.7,3034.6,0.001]
[1763628772944,0.516504,3034.7,3034.6,0.4569]
[1763628773157,0.516504,3034.7,3034.6,0.9329]
[1763628774033,3.81172263,3034.7,3034.6,0.9329]
[1763628774443,3.81172263,3034.7,3034.6,0.4569]
[1763628775314,3.71340588,3034.7,3034.6,0.4569]
[1763628775535,0.41818725,3034.7,3034.6,0.9329]
[1763628775741,0.111,3034.7,3034.6,0.9329]
[1763628776517,0.41818725,3034.7,3034.6,0.9329]
[1763628777837,3.71340588,3034.7,3034.6,0.4569]
[1763628778227,3.40621863,3034.7,3034.6,0.4569]
[1763628778428,3.71333321,3034.7,3034.6,0.001]
[1763628778634,4.20203321,3034.7,3034.6,0.001]
[1763628779149,3.71333321,3034.7,3034.6,0.001]
[1763628780450,3.71333321,3034.7,3034.6,0.4569]
[1763628780751,3.71333321,3034.7,3034.6,0.9329]
[1763628781249,3.71333321,3034.7,3034.6,0.001]
[1763628781250,3.80853321,3034.7,3034.6,0.001]
[1763628781446,0.41811458,3034.7,3034.6,0.9329]
[1763628781646,0.111,3034.7,3034.6,0.9329]
[1763628782042,0.111,3034.7,3034.6,4.7173]
[1763628782642,0.111,3034.7,3034.6,5.52197976]
[1763628782843,3.60212347,3034.9,3034.6,5.52197976]
[1763628783041,3.40592168,3035.0,3034.8,0.4559]
[1763628783351,0.30712806,3034.9,3034.7,0.476]
[1763628783728,0.30712806,3034.9,3034.8,0.4559]
[1763628783917,0.111,3035.0,3034.8,1.00809798]
[1763628784124,0.111,3035.0,3034.9,0.9319]
[1763628784329,0.41812806,3035.0,3034.9,0.9319]
[1763628785753,3.71302097,3035.0,3034.9,0.9319]
[1763628786251,3.71302097,3035.0,3034.9,0.4559]
[1763628787561,7.10311388,3035.0,3034.6,3.7854]
[1763628787882,0.4887,3034.7,3034.6,3.7854]
[1763628788063,0.4887,3034.7,3034.6,0.001]
[1763628788262,0.30712806,3034.9,3034.6,0.491]
[1763628788453,3.29511005,3034.8,3034.6,0.491]
[1763628790266,6.59008524,3034.9,3034.6,0.491]
[1763628790440,0.307409,3034.8,3034.6,0.491]
[1763628791339,6.59008524,3034.9,3034.6,0.491]
[1763628792278,6.58928524,3034.9,3034.6,0.491]
[1763628793974,3.29424262,3034.9,3034.7,3.79]
[1763628794280,3.29424262,3034.9,3034.8,0.49]
[1763628794478,3.60170639,3034.9,3034.8,0.49]
[1763628796876,0.30746377,3034.9,3034.8,1.0006511]
[1763628797052,0.30746377,3034.9,3034.8,1.44686511]
[1763628797256,3.60246525,3034.9,3034.8,0.9677]
[1763628797456,3.60246525,3034.9,3034.7,3.79]
[1763628797755,0.30756336,3034.8,3034.7,3.79]
[1763628797950,0.30756336,3034.8,3034.7,4.2677]
[1763628798155,0.30756336,3034.8,3034.7,4.7577]
[1763628798981,3.60267341,3034.8,3034.7,4.28]
[1763628799888,3.67527341,3034.8,3034.7,3.79]
[1763628800094,0.30756336,3034.8,3034.7,4.28]
[1763628800960,0.30756336,3034.8,3034.7,0.49]
[1763628802282,3.60267341,3034.8,3034.7,0.49]
[1763628803379,0.30756336,3034.8,3034.7,0.49]
[1763628804874,3.60267341,3034.8,3034.7,0.49]
[1763628805577,3.67527341,3034.8,3034.6,0.001]
[1763628805783,0.30756336,3034.7,3034.6,0.001]
[1763628806501,0.30756336,3034.7,3034.6,0.491]
[1763628807455,0.30756336,3034.7,3034.6,0.9687]
[1763628807985,3.60268833,3034.8,3034.6,0.9687]
[1763628808180,3.29512497,3034.8,3034.6,0.9687]
[1763628808381,0.30767044,3034.7,3034.6,0.4787]
[1763628808788,0.30767044,3034.7,3034.6,0.001]
[1763628809084,0.30767044,3034.7,3034.6,0.82915125]
[1763628809290,0.002,3034.9,3034.6,0.82915125]
[1763628809605,0.002,3034.9,3034.8,0.4984]
[1763628809787,0.002,3034.9,3034.8,1.0306511]
[1763628809955,0.002,3034.9,3034.8,5.72888357]
[1763628810155,0.002,3034.9,3034.8,9.6299571]
[1763628810354,0.002,3034.9,3034.8,9.597006]
[1763628810598,0.0012,3035.1,3034.9,0.90699264]
[1763628810892,0.0012,3035.1,3035.0,10.39292511]
[1763628811392,0.0012,3035.1,3035.0,13.73581711]
[1763628811571,0.0012,3035.1,3035.0,15.25544843]
[1763628811895,0.0012,3035.1,3035.0,18.55034134]
[1763628814202,0.0012,3035.1,3035.0,7.87360887]
[1763628816176,0.0004,3035.1,3035.0,7.76260887]
[1763628816686,0.0004,3035.1,3035.0,0.4984]
[1763628817760,0.0906,3035.1,3034.7,0.4993]
[1763628817964,0.0906,3035.1,3034.7,3.79451836]
[1763628818163,0.0004,3035.1,3034.7,3.79451836]